fUST/lending_fUST_20240922
["ID","MTS","AMOUNT","RATE_DAILY","PERIOD"]
[338857971,1726947050072,-500.0,0.00014324,2]
[338857972,1726947050082,-500.0,0.00014324,2]
[338857973,1726947050091,-500.0,0.00014324,2]
[338857974,1726947050101,-504.33293629,0.00014324,2]
[338857975,1726947050111,-500.0,0.00014324,2]
[338857976,1726947050122,-500.0,0.00014324,2]
[338857977,1726947050134,-500.0,0.00014324,2]
[338857978,1726947050144,-500.0,0.00014324,2]
[338857979,1726947050191,-500.0,0.00014324,2]
[338857980,1726947050201,-639.55645757,0.00014324,2]
[338857981,1726947050210,-502.30677793,0.00014324,2]
[338857982,1726947050221,-502.70761251,0.00014324,2]
[338857983,1726947050231,-500.0,0.00014324,2]
[338857984,1726947050240,-600.0,0.00014445,2]
[338857985,1726947050250,-600.0,0.00014445,2]
[338857986,1726947050261,-500.0,0.00014567,2]
[338857987,1726947050271,-500.0,0.00014567,2]
[338857988,1726947050280,-500.0,0.00014567,2]
[338857989,1726947050290,-500.0,0.00014576,2]
[338857990,1726947050300,-614.12,0.00014576,2]
[338857991,1726947050310,-500.0,0.00014576,2]
[338857992,1726947050319,-500.0,0.00014576,2]
[338857993,1726947050328,-500.0,0.00014576,2]
[338857994,1726947050338,-502.04,0.00014576,2]
[338857995,1726947050347,-500.0,0.00014576,2]
[338857996,1726947050357,-500.0,0.00014576,2]
[338857997,1726947050366,-8513.16346965,0.00014576,2]
[338857998,1726947050551,-200.0,0.0001403,2]
[338857999,1726947050560,-4841.19653035,0.00014576,2]
[338858000,1726947050570,-1839.8,0.00014576,2]
[338858001,1726947050579,-500.0,0.00014577,2]
[338858002,1726947050589,-760.51,0.00014577,2]
[338858003,1726947050598,-151.0,0.00014577,2]
[338858004,1726947050608,-231.922453,0.00014577,2]
[338858005,1726947050619,-471.71,0.00014577,2]
[338858006,1726947050629,-151.0,0.00014577,2]
[338858007,1726947050639,-500.0,0.00014577,2]
[338858008,1726947050648,-151.0,0.00014577,2]
[338858009,1726947050658,-500.0,0.00014577,2]
[338858010,1726947050668,-679.981715,0.00014577,2]
[338858011,1726947050677,-663.497355,0.00014577,2]
[338858012,1726947050687,-679.981715,0.00014577,2]
[338858013,1726947050696,-663.497355,0.00014577,2]
[338858014,1726947050706,-206.929826,0.00014577,2]
[338858015,1726947050716,-206.929826,0.00014577,2]
[338858016,1726947050725,-500.0,0.00014577,2]
[338858017,1726947050735,-500.0,0.00014577,2]
[338858018,1726947050745,-246.912134,0.00014577,2]
[338858019,1726947050756,-262.430239,0.00014577,2]
[338858020,1726947050765,-1149.03,0.00014577,2]
[338858021,1726947050774,-262.430239,0.00014577,2]
[338858022,1726947050784,-246.912134,0.00014577,2]
[338858023,1726947050794,-151.0,0.00014577,2]
[338858024,1726947050803,-151.0,0.00014577,2]
[338858025,1726947050812,-1365.564214,0.00014577,2]
[338858026,1726947050822,-151.0,0.00014577,2]
[338858027,1726947050831,-1365.564214,0.00014577,2]
[338858028,1726947050841,-1407.328097,0.00014577,2]
[338858029,1726947050851,-1407.328097,0.00014577,2]
[338858030,1726947050860,-529.6752456,0.00014577,2]
[338858031,1726947050870,-444.44192916,0.00014577,2]
[338858032,1726947051018,-500.0,0.0001402,2]
[338858033,1726947051030,-500.0,0.0001402,2]
[338858034,1726947051041,-500.0,0.0001404,2]
[338858035,1726947051059,-200.0,0.00014304,2]
[338858036,1726947051068,-507.06096014,0.00014314,2]
[338858037,1726947051077,-500.0,0.00014314,2]
[338858038,1726947051086,-5907.53807084,0.00014577,2]
[338858039,1726947051095,-600.0,0.00014578,2]
[338858040,1726947051104,-617.99440258,0.00014578,2]
[338858041,1726947051113,-500.0,0.00014578,2]
[338858042,1726947051123,-500.0,0.00014578,2]
[338858043,1726947051132,-500.0,0.00014578,2]
[338858044,1726947051142,-564.56,0.00014578,2]
[338858045,1726947051151,-500.0,0.00014578,2]
[338858046,1726947051160,-223.90052132,0.00014578,2]
[338858047,1726947051170,-500.0,0.00014578,2]
[338858048,1726947051182,-567.22,0.00014578,2]
[338858049,1726947051194,-500.0,0.00014578,2]
[338858050,1726947051204,-500.0,0.00014578,2]
[338858051,1726947051215,-500.0,0.00014578,2]
[338858052,1726947051226,-516.04,0.00014578,2]
[338858053,1726947051237,-500.0,0.00014578,2]
[338858054,1726947051247,-500.0,0.00014578,2]
[338858055,1726947051258,-500.0,0.00014578,2]
[338858056,1726947051268,-500.0,0.00014578,2]
[338858057,1726947051278,-500.0,0.00014578,2]
[338858058,1726947051287,-992.44,0.00014578,2]
[338858059,1726947051300,-500.0,0.00014578,2]
[338858060,1726947051309,-500.0,0.00014578,2]
[338858061,1726947051318,-500.0,0.00014578,2]
[338858062,1726947051328,-500.0,0.00014578,2]
[338858063,1726947051337,-500.0,0.00014578,2]
[338858064,1726947051347,-500.0,0.00014578,2]
[338858065,1726947051357,-500.0,0.00014578,2]
[338858066,1726947051366,-500.0,0.00014578,2]
[338858067,1726947051375,-500.0,0.00014578,2]
[338858068,1726947051384,-502.1522072,0.00014578,2]
[338858069,1726947051394,-500.0,0.00014578,2]
[338858070,1726947051403,-500.0,0.00014578,2]
[338858071,1726947051413,-500.0,0.00014578,2]
[338858072,1726947051422,-960.51,0.00014578,2]
[338858073,1726947051433,-500.0,0.00014578,2]
[338858074,1726947051443,-508.43863048,0.00014578,2]
[338858075,1726947051456,-500.0,0.00014578,2]
[338858076,1726947051467,-500.0,0.00014578,2]
[338858077,1726947051476,-500.0,0.00014578,2]
[338858078,1726947051486,-500.0,0.00014578,2]
[338858079,1726947051496,-289.1148186,0.00014578,2]
[338858080,1726947051507,-500.0,0.00014578,2]
[338858081,1726947051517,-500.0,0.00014578,2]
[338858082,1726947051532,-500.0,0.00014578,2]
[338858083,1726947051542,-500.0,0.00014578,2]
[338858084,1726947051556,-603.4,0.00014578,2]
[338858085,1726947051566,-500.0,0.00014578,2]
[338858086,1726947051576,-500.0,0.00014578,2]
[338858087,1726947051587,-500.0,0.00014578,2]
[338858088,1726947051597,-500.0,0.00014578,2]
[338858089,1726947051608,-500.0,0.00014578,2]
[338858090,1726947051623,-500.0,0.00014578,2]
[338858091,1726947051636,-500.0,0.00014578,2]
[338858092,1726947051645,-584.74,0.00014578,2]
[338858093,1726947051656,-500.0,0.00014578,2]
[338858094,1726947051667,-500.0,0.00014578,2]
[338858095,1726947051678,-472.96,0.00014578,2]
[338858096,1726947051689,-500.0,0.00014578,2]
[338858097,1726947051700,-200.0,0.00014578,2]
[338858098,1726947051712,-500.0,0.00014585,2]
[338858099,1726947051723,-500.0,0.00014588,2]
[338858100,1726947051735,-500.0,0.00014588,2]
[338858101,1726947051745,-500.0,0.00014588,2]
[338858102,1726947051755,-500.0,0.00014588,2]
[338858103,1726947051764,-500.0,0.00014588,2]
[338858104,1726947051774,-500.0,0.00014588,2]
[338858105,1726947051784,-500.0,0.00014588,2]
[338858106,1726947051794,-500.0,0.00014588,2]
[338858107,1726947051804,-500.0,0.00014588,2]
[338858108,1726947051814,-500.0,0.00014588,2]
[338858109,1726947051824,-500.0,0.00014588,2]
[338858110,1726947051834,-500.0,0.00014588,2]
[338858111,1726947051844,-500.0,0.00014588,2]
[338858112,1726947051854,-500.0,0.00014588,2]
[338858113,1726947051864,-500.0,0.00014588,2]
[338858114,1726947051874,-500.0,0.00014588,2]
[338858115,1726947051884,-500.0,0.00014588,2]
[338858116,1726947051893,-500.0,0.00014588,2]
[338858117,1726947051903,-854.62,0.00014588,2]
[338858118,1726947051913,-500.0,0.00014588,2]
[338858119,1726947051924,-517.56,0.00014588,2]
[338858120,1726947051934,-500.0,0.00014588,2]
[338858121,1726947051944,-198.50481637,0.00014588,2]
[338858122,1726947051954,-551.66,0.00014588,2]
[338858123,1726947051964,-500.0,0.00014588,2]
[338858124,1726947051974,-500.0,0.00014588,2]
[338858125,1726947051984,-500.0,0.00014588,2]
[338858126,1726947051994,-500.0,0.00014588,2]
[338858127,1726947052004,-500.0,0.00014588,2]
[338858128,1726947052013,-500.0,0.00014588,2]
[338858129,1726947052023,-500.0,0.00014588,2]
[338858130,1726947052033,-500.0,0.00014588,2]
[338858131,1726947052042,-500.0,0.00014588,2]
[338858132,1726947052052,-509.28277334,0.00014588,2]
[338858133,1726947052062,-500.0,0.00014588,2]
[338858134,1726947052071,-779.81,0.00014588,2]
[338858135,1726947052081,-500.0,0.00014588,2]
[338858136,1726947052091,-500.0,0.00014588,2]
[338858137,1726947052101,-500.0,0.00014588,2]
[338858138,1726947052110,-500.0,0.00014589,2]
[338858139,1726947052120,-500.0,0.00014598,2]
[338858140,1726947052130,-295.18,0.00014841,2]
[338858141,1726947052142,-500.0,0.00014841,2]
[338858142,1726947052154,-500.0,0.0001485,2]
[338858143,1726947052165,-614.12,0.0001485,2]
[338858144,1726947052176,-500.0,0.0001485,2]
[338858145,1726947052186,-500.0,0.0001485,2]
[338858146,1726947052197,-420.8,0.0001485,2]
[338858147,1726947052207,-502.04,0.0001485,2]
[338858148,1726947052217,-500.0,0.0001485,2]
[338858149,1726947052228,-500.0,0.0001485,2]
[338858150,1726947052239,-13354.36,0.0001485,2]
[338858151,1726947052249,-1839.8,0.0001485,2]
[338858152,1726947052258,-500.0,0.00014851,2]
[338858153,1726947052268,-760.51,0.00014851,2]
[338858154,1726947052278,-500.0,0.00014851,2]
[338858155,1726947052288,-500.0,0.00014851,2]
[338858156,1726947052299,-481.38,0.00014851,2]
[338858157,1726947052308,-500.0,0.00014851,2]
[338858158,1726947052318,-1149.03,0.00014851,2]
[338858159,1726947052328,-6351.98,0.00014851,2]
[338858160,1726947052337,-500.0,0.00014852,2]
[338858161,1726947052347,-564.56,0.00014852,2]
[338858162,1726947052356,-500.0,0.00014852,2]
[338858163,1726947052366,-516.04,0.00014852,2]
[338858164,1726947052375,-500.0,0.00014852,2]
[338858165,1726947052384,-500.0,0.00014852,2]
[338858166,1726947052394,-500.0,0.00014852,2]
[338858167,1726947052404,-500.0,0.00014852,2]
[338858168,1726947052414,-992.44,0.00014852,2]
[338858169,1726947052424,-500.0,0.00014852,2]
[338858170,1726947052434,-500.0,0.00014852,2]
[338858171,1726947052444,-500.0,0.00014852,2]
[338858172,1726947052453,-315.11896221,0.00014852,2]
[338858173,1726947052462,-500.0,0.00014852,2]
[338858174,1726947052472,-500.0,0.00014852,2]
[338858175,1726947052481,-500.0,0.00014852,2]
[338858176,1726947052491,-627.52,0.00014852,2]
[338858177,1726947052501,-960.51,0.00014852,2]
[338858178,1726947052511,-603.4,0.00014852,2]
[338858179,1726947052520,-500.0,0.00014852,2]
[338858180,1726947052530,-500.0,0.00014852,2]
[338858181,1726947052540,-500.0,0.00014852,2]
[338858182,1726947052550,-500.0,0.00014852,2]
[338858183,1726947052561,-500.0,0.00014852,2]
[338858184,1726947052570,-524.23712558,0.00014852,2]
[338858185,1726947052580,-500.0,0.00014852,2]
[338858186,1726947052590,-584.74,0.00014852,2]
[338858187,1726947052599,-500.0,0.00014852,2]
[338858188,1726947052610,-500.0,0.00014852,2]
[338858189,1726947052624,-500.0,0.00014852,2]
[338858190,1726947052634,-314.51393293,0.00014852,2]
[338858191,1726947052644,-500.0,0.00014862,2]
[338858192,1726947052654,-500.0,0.00014862,2]
[338858193,1726947052665,-315.61596561,0.00014862,2]
[338858194,1726947052674,-500.0,0.00014862,2]
[338858195,1726947052684,-529.28359655,0.00014862,2]
[338858196,1726947052695,-500.0,0.00014862,2]
[338858197,1726947052705,-262.81972948,0.00014862,2]
[338858198,1726947052715,-500.0,0.00014862,2]
[338858199,1726947052724,-389.35667443,0.00014862,2]
[338858200,1726947052734,-500.0,0.00014862,2]
[338858201,1726947052744,-159.79670019,0.00014862,2]
[338858202,1726947052753,-500.0,0.00014862,2]
[338858203,1726947052763,-500.0,0.00014862,2]
[338858204,1726947052774,-500.0,0.00014862,2]
[338858205,1726947052785,-500.0,0.00014862,2]
[338858206,1726947052795,-500.0,0.00014862,2]
[338858207,1726947052807,-500.0,0.00014862,2]
[338858208,1726947052818,-854.62,0.00014862,2]
[338858209,1726947052828,-500.0,0.00014862,2]
[338858210,1726947052837,-517.56,0.00014862,2]
[338858211,1726947052847,-500.0,0.00014862,2]
[338858212,1726947052858,-551.66,0.00014862,2]
[338858213,1726947052869,-500.0,0.00014862,2]
[338858214,1726947052880,-500.0,0.00014862,2]
[338858215,1726947052890,-268.5491018,0.00014862,2]
[338858216,1726947052899,-500.0,0.00014862,2]
[338858217,1726947052909,-500.0,0.00014862,2]
[338858218,1726947052918,-500.0,0.00014862,2]
[338858219,1726947052928,-500.0,0.00014862,2]
[338858220,1726947052938,-156.44103273,0.00014862,2]
[338858221,1726947052948,-474.68,0.00014862,2]
[338858222,1726947052958,-500.0,0.00014862,2]
[338858223,1726947052969,-779.81,0.00014862,2]
[338858224,1726947052979,-546.56980272,0.00014862,2]
[338858225,1726947052989,-330.36191335,0.00014862,2]
[338858226,1726947052998,-500.0,0.00014862,2]
[338858227,1726947053008,-500.0,0.00014863,2]
[338858228,1726947053017,-500.0,0.00014872,2]
[338858229,1726947053027,-600.14169489,0.00014891,2]
[338858230,1726947053037,-1382.63,0.00015,2]
[338858231,1726947053048,-507.33251565,0.00015115,2]
[338858232,1726947053058,-500.0,0.00015124,2]
[338858233,1726947053068,-614.12,0.00015124,2]
[338858234,1726947053077,-229.23,0.00015124,2]
[338858235,1726947053087,-500.0,0.00015124,2]
[338858236,1726947053096,-502.04,0.00015124,2]
[338858237,1726947053106,-500.0,0.00015124,2]
[338858238,1726947053116,-239.96,0.00015124,2]
[338858239,1726947053127,-13354.36,0.00015124,2]
[338858240,1726947053137,-1839.8,0.00015124,2]
[338858241,1726947053147,-500.0,0.00015125,2]
[338858242,1726947053157,-760.51,0.00015125,2]
[338858243,1726947053167,-500.0,0.00015125,2]
[338858244,1726947053177,-500.0,0.00015125,2]
[338858245,1726947053187,-500.0,0.00015125,2]
[338858246,1726947053196,-1149.03,0.00015125,2]
[338858247,1726947053206,-6351.98,0.00015125,2]
[338858248,1726947053215,-500.0,0.00015126,2]
[338858249,1726947053226,-564.56,0.00015126,2]
[338858250,1726947053236,-500.0,0.00015126,2]
[338858251,1726947053246,-516.04,0.00015126,2]
[338858252,1726947053256,-992.44,0.00015126,2]
[338858253,1726947053266,-383.03799806,0.00015126,2]
[338858254,1726947053276,-500.0,0.00015126,2]
[338858255,1726947053285,-500.0,0.00015126,2]
[338858256,1726947053295,-337.36,0.00015126,2]
[338858257,1726947053305,-960.51,0.00015126,2]
[338858258,1726947053315,-603.4,0.00015126,2]
[338858259,1726947053325,-500.0,0.00015126,2]
[338858260,1726947053334,-500.0,0.00015126,2]
[338858261,1726947053344,-353.24,0.00015126,2]
[338858262,1726947053354,-391.56868331,0.00015126,2]
[338858263,1726947053364,-500.0,0.00015126,2]
[338858264,1726947053373,-500.0,0.00015126,2]
[338858265,1726947053383,-584.74,0.00015126,2]
[338858266,1726947053392,-500.0,0.00015126,2]
[338858267,1726947053401,-500.0,0.00015126,2]
[338858268,1726947053411,-500.0,0.00015126,2]
[338858269,1726947053420,-500.0,0.00015136,2]
[338858270,1726947053430,-500.0,0.00015136,2]
[338858271,1726947053439,-500.0,0.00015136,2]
[338858272,1726947053448,-500.0,0.00015136,2]
[338858273,1726947053458,-500.0,0.00015136,2]
[338858274,1726947053468,-500.0,0.00015136,2]
[338858275,1726947053477,-611.18984245,0.00015136,2]
[338858276,1726947053488,-500.0,0.00015136,2]
[338858277,1726947053499,-389.31955495,0.00015136,2]
[338858278,1726947053509,-500.0,0.00015136,2]
[338858279,1726947053518,-500.0,0.00015136,2]
[338858280,1726947053529,-854.62,0.00015136,2]
[338858281,1726947053539,-500.0,0.00015136,2]
[338858282,1726947053551,-517.56,0.00015136,2]
[338858283,1726947053563,-500.0,0.00015136,2]
[338858284,1726947053573,-551.66,0.00015136,2]
[338858285,1726947053582,-500.0,0.00015136,2]
[338858286,1726947053592,-500.0,0.00015136,2]
[338858287,1726947053602,-500.0,0.00015136,2]
[338858288,1726947053612,-500.0,0.00015136,2]
[338858289,1726947053624,-500.0,0.00015136,2]
[338858290,1726947053634,-500.0,0.00015136,2]
[338858291,1726947053645,-779.81,0.00015136,2]
[338858292,1726947053656,-500.0,0.00015136,2]
[338858293,1726947053666,-500.0,0.00015137,2]
[338858294,1726947053676,-485.67941946,0.00015146,2]
[338858295,1726947053685,-420.0,0.00015357,2]
[338858296,1726947053696,-500.0,0.00015398,2]
[338858297,1726947053706,-614.12,0.00015398,2]
[338858298,1726947053716,-500.0,0.00015398,2]
[338858299,1726947053726,-502.04,0.00015398,2]
[338858300,1726947053738,-500.0,0.00015398,2]
[338858301,1726947053749,-13354.36,0.00015398,2]
[338858302,1726947053760,-1839.8,0.00015398,2]
[338858303,1726947053907,-500.0,0.00015399,2]
[338858304,1726947053918,-760.51,0.00015399,2]
[338858305,1726947053928,-500.0,0.00015399,2]
[338858306,1726947053937,-500.0,0.00015399,2]
[338858307,1726947053947,-500.0,0.00015399,2]
[338858308,1726947053956,-1149.03,0.00015399,2]
[338858309,1726947053965,-151.0,0.00015399,2]
[338858310,1726947053975,-6351.98,0.00015399,2]
[338858311,1726947053984,-564.56,0.000154,2]
[338858312,1726947053993,-500.0,0.000154,2]
[338858313,1726947054002,-300.0,0.000154,5]
[338858314,1726947054011,-516.04,0.000154,2]
[338858315,1726947054020,-992.44,0.000154,2]
[338858316,1726947054032,-500.0,0.000154,2]
[338858317,1726947054042,-500.0,0.000154,2]
[338858318,1726947054054,-960.51,0.000154,2]
[338858319,1726947054063,-151.0,0.000154,2]
[338858320,1726947054072,-151.0,0.000154,2]
[338858321,1726947054082,-603.4,0.000154,2]
[338858322,1726947054092,-500.0,0.000154,2]
[338858323,1726947054101,-500.0,0.000154,2]
[338858324,1726947054110,-500.0,0.000154,2]
[338858325,1726947054119,-500.0,0.000154,2]
[338858326,1726947054128,-151.0,0.000154,2]
[338858327,1726947054137,-584.74,0.000154,2]
[338858328,1726947054146,-500.0,0.000154,2]
[338858329,1726947054156,-500.0,0.000154,2]
[338858330,1726947054165,-245.893179,0.000154,2]
[338858331,1726947054175,-245.893179,0.000154,2]
[338858332,1726947054184,-342.459776,0.000154,2]
[338858333,1726947054193,-500.0,0.000154,2]
[338858334,1726947054202,-342.459776,0.000154,2]
[338858335,1726947054212,-500.0,0.0001541,2]
[338858336,1726947054221,-500.0,0.0001541,2]
[338858337,1726947054229,-500.0,0.0001541,2]
[338858338,1726947054239,-500.0,0.0001541,2]
[338858339,1726947054248,-500.0,0.0001541,2]
[338858340,1726947054258,-500.0,0.0001541,2]
[338858341,1726947054267,-151.0,0.0001541,2]
[338858342,1726947054276,-153.278653,0.0001541,2]
[338858343,1726947054285,-151.0,0.0001541,2]
[338858344,1726947054295,-500.0,0.0001541,2]
[338858345,1726947054306,-151.0,0.0001541,2]
[338858346,1726947054315,-151.0,0.0001541,2]
[338858347,1726947054324,-151.0,0.0001541,2]
[338858348,1726947054333,-500.0,0.0001541,2]
[338858349,1726947054342,-854.62,0.0001541,2]
[338858350,1726947054351,-500.0,0.0001541,2]
[338858351,1726947054360,-500.0,0.0001541,2]
[338858352,1726947054370,-517.56,0.0001541,2]
[338858353,1726947054379,-551.66,0.0001541,2]
[338858354,1726947054389,-500.0,0.0001541,2]
[338858355,1726947054398,-528.6808732,0.0001541,2]
[338858356,1726947054408,-500.0,0.0001541,2]
[338858357,1726947054417,-500.0,0.0001541,2]
[338858358,1726947054427,-500.0,0.0001541,2]
[338858359,1726947054436,-500.0,0.0001541,2]
[338858360,1726947054446,-779.81,0.0001541,2]
[338858361,1726947054455,-500.0,0.0001541,2]
[338858362,1726947054465,-500.0,0.00015411,2]
[338858363,1726947054474,-420.0,0.0001542,2]
[338858364,1726947054483,-151.0,0.00015442,2]
[338858365,1726947054492,-151.0,0.00015442,2]
[338858366,1726947054501,-438.571061,0.00015442,2]
[338858367,1726947054512,-438.571061,0.00015442,2]
[338858368,1726947054521,-151.0,0.00015442,2]
[338858369,1726947054530,-151.0,0.00015442,2]
[338858370,1726947054540,-1111.04577296,0.00015442,2]
[338858371,1726947054549,-1000.0,0.00015442,2]
[338858372,1726947054559,-688.20230846,0.00015442,2]
[338858373,1726947054568,-876.33839844,0.00015442,2]
[338858374,1726947054578,-1000.0,0.00015442,2]
[338858375,1726947054587,-1000.0,0.00015442,2]
[338858376,1726947054597,-1000.0,0.00015442,2]
[338858377,1726947054606,-1000.31559626,0.00015442,2]
[338858378,1726947054620,-500.0,0.00015442,2]
[338858379,1726947054630,-1000.0,0.00015442,2]
[338858380,1726947054640,-1000.0,0.00015442,2]
[338858381,1726947054651,-303.89639885,0.00015442,2]
[338858382,1726947054661,-1000.0,0.00015442,2]
[338858383,1726947054671,-1000.0,0.00015442,2]
[338858384,1726947054680,-1000.0,0.00015442,2]
[338858385,1726947054690,-1000.0,0.00015442,2]
[338858386,1726947054700,-883.63675899,0.00015606,2]
[338858387,1726947054711,-500.0,0.00015672,2]
[338858388,1726947054720,-614.12,0.00015672,2]
[338858389,1726947054730,-500.0,0.00015672,2]
[338858390,1726947054739,-502.04,0.00015672,2]
[338858391,1726947054748,-500.0,0.00015672,2]
[338858392,1726947054757,-13354.36,0.00015672,2]
[338858393,1726947054767,-1839.8,0.00015672,2]
[338858394,1726947054777,-500.0,0.00015673,2]
[338858395,1726947054788,-760.51,0.00015673,2]
[338858396,1726947054800,-500.0,0.00015673,2]
[338858397,1726947054810,-500.0,0.00015673,2]
[338858398,1726947054819,-500.0,0.00015673,2]
[338858399,1726947054828,-1149.03,0.00015673,2]
[338858400,1726947054838,-6351.98,0.00015673,2]
[338858401,1726947054848,-564.56,0.00015674,2]
[338858402,1726947054857,-519.6524215,0.00015674,2]
[338858403,1726947054867,-516.04,0.00015674,2]
[338858404,1726947054877,-992.44,0.00015674,2]
[338858405,1726947054886,-500.0,0.00015674,2]
[338858406,1726947054895,-209.69262105,0.00015674,2]
[338858407,1726947054905,-960.51,0.00015674,2]
[338858408,1726947054914,-603.4,0.00015674,2]
[338858409,1726947054924,-336.61644193,0.00015674,2]
[338858410,1726947054934,-500.0,0.00015674,2]
[338858411,1726947054943,-500.0,0.00015674,2]
[338858412,1726947054952,-500.0,0.00015674,2]
[338858413,1726947054962,-584.74,0.00015674,2]
[338858414,1726947054971,-500.0,0.00015674,2]
[338858415,1726947054980,-500.0,0.00015674,2]
[338858416,1726947054989,-500.0,0.00015674,2]
[338858417,1726947054999,-500.0,0.00015684,2]
[338858418,1726947055008,-500.0,0.00015684,2]
[338858419,1726947055018,-602.48346368,0.00015684,2]
[338858420,1726947055027,-500.0,0.00015684,2]
[338858421,1726947055037,-500.0,0.00015684,2]
[338858422,1726947055047,-217.3981368,0.00015684,2]
[338858423,1726947055070,-500.0,0.00015684,2]
[338858424,1726947055079,-500.0,0.00015684,2]
[338858425,1726947055089,-854.62,0.00015684,2]
[338858426,1726947055099,-500.0,0.00015684,2]
[338858427,1726947055111,-500.0,0.00015684,2]
[338858428,1726947055122,-517.56,0.00015684,2]
[338858429,1726947055131,-551.66,0.00015684,2]
[338858430,1726947055141,-500.0,0.00015684,2]
[338858431,1726947055151,-500.0,0.00015684,2]
[338858432,1726947055160,-500.0,0.00015684,2]
[338858433,1726947055170,-500.0,0.00015684,2]
[338858434,1726947055179,-500.0,0.00015684,2]
[338858435,1726947055189,-779.81,0.00015684,2]
[338858436,1726947055198,-500.0,0.00015684,2]
[338858437,1726947055208,-500.0,0.00015685,2]
[338858438,1726947055218,-500.0,0.00015946,2]
[338858439,1726947055227,-614.12,0.00015946,2]
[338858440,1726947055237,-500.0,0.00015946,2]
[338858441,1726947055247,-502.04,0.00015946,2]
[338858442,1726947055257,-500.0,0.00015946,2]
[338858443,1726947055267,-13354.36,0.00015946,2]
[338858444,1726947055277,-1839.8,0.00015946,2]
[338858445,1726947055286,-500.0,0.00015947,2]
[338858446,1726947055296,-760.51,0.00015947,2]
[338858447,1726947055308,-500.0,0.00015947,2]
[338858448,1726947055317,-500.0,0.00015947,2]
[338858449,1726947055327,-500.0,0.00015947,2]
[338858450,1726947055337,-517.426835,0.00015947,2]
[338858451,1726947055347,-1149.03,0.00015947,2]
[338858452,1726947055356,-517.426835,0.00015947,2]
[338858453,1726947055366,-6351.98,0.00015947,2]
[338858454,1726947055375,-564.56,0.00015948,2]
[338858455,1726947055385,-516.04,0.00015948,2]
[338858456,1726947055395,-992.44,0.00015948,2]
[338858457,1726947055405,-500.0,0.00015948,2]
[338858458,1726947055415,-960.51,0.00015948,2]
[338858459,1726947055425,-603.4,0.00015948,2]
[338858460,1726947055434,-151.0,0.00015948,2]
[338858461,1726947055445,-151.0,0.00015948,2]
[338858462,1726947055454,-5000.0,0.00015948,2]
[338858463,1726947055464,-1674.517847,0.00015948,2]
[338858464,1726947055473,-679.981715,0.00015948,2]
[338858465,1726947055482,-663.497355,0.00015948,2]
[338858466,1726947055492,-679.981715,0.00015948,2]
[338858467,1726947055501,-500.0,0.00015948,2]
[338858468,1726947055510,-663.497355,0.00015948,2]
[338858469,1726947055519,-500.0,0.00015948,2]
[338858470,1726947055529,-206.929826,0.00015948,2]